bitfinex-derivatives/quotes_SOLF0:USTF0_20250630
["timestamp","ask_amount","ask_price","bid_price","bid_amount"]
[1751301946082,4.247988,157.02,156.99,6.3679]
[1751301946383,6.3669,157.03,156.99,6.3679]
[1751301946587,6.3672,157.02,156.98,6.3685]
[1751301946979,7.96736532,157.03,156.97,40.3889]
[1751301947179,6.3676,157.01,156.97,40.3889]
[1751301947587,3.71937732,157.03,156.97,40.3889]
[1751301947889,4.247988,157.02,156.97,34.02]
[1751301948187,6.3669,157.03,156.97,34.02]
[1751301948387,10.614888,157.03,156.97,34.02]
[1751301948684,4.247988,157.04,156.97,37.73937732]
[1751301948878,4.247988,157.03,157.02,6.367]
[1751301949078,4.247988,157.06,157.02,6.367]
[1751301949288,4.247988,157.05,157.01,3.71937732]
[1751301949484,4.247988,157.04,157.02,6.3667]
[1751301949683,4.247988,157.05,157.02,6.3667]
[1751301949884,4.247988,157.04,157.02,6.3667]
[1751301950083,4.247988,157.03,157.02,6.3667]
[1751301950279,4.247988,157.05,157.02,6.3667]
[1751301950480,10.613388,157.06,157.02,6.3667]
[1751301950684,6.3654,157.06,157.02,6.3667]
[1751301950883,4.247988,157.05,157.02,6.3667]
[1751301951286,10.613788,157.05,157.02,6.3667]
[1751301951588,6.3658,157.05,157.02,6.3667]
[1751301951784,10.613788,157.05,157.02,6.3667]
[1751301951985,10.613488,157.06,157.02,6.3667]
[1751301952181,4.247988,157.05,157.01,3.71937732]
[1751301952389,38.107988,157.07,157.01,10.08657732]
[1751301952586,6.3661,157.05,157.01,10.08657732]
[1751301953193,38.107988,157.07,156.99,10.08747732]
[1751301953194,6.3672,157.02,156.99,10.08747732]
[1751301953586,7.96736532,157.04,156.97,44.10817732]
[1751301953789,33.86,157.03,156.97,10.08817732]
[1751301953990,38.107988,157.03,156.97,10.08817732]
[1751301954289,4.247988,157.03,156.95,2.1989]
[1751301954493,4.247988,157.04,156.96,3.71937732]
[1751301954688,4.247988,157.04,156.97,6.369]
[1751301954994,4.247988,157.03,156.98,3.71937732]
[1751301955195,6.3674,157.02,156.98,10.08767732]
[1751301956794,6.3674,157.02,156.99,6.3681]
[1751301962601,4.30439389,157.03,156.99,6.3681]
[1751301962998,33.86,157.04,156.99,6.3681]
[1751301963200,38.16439389,157.04,156.98,6.3684]
[1751301963400,33.86,157.04,156.98,6.3684]
[1751301963598,38.16439389,157.04,156.97,3.71937732]
[1751301963898,38.16439389,157.04,156.95,5.91827732]
[1751301963899,4.30439389,157.03,156.95,5.91827732]
[1751301964096,8.02377121,157.02,156.95,5.91827732]
[1751301964298,3.71937732,157.0,156.92,6.3709]
[1751301964606,4.30439389,156.99,156.93,3.71937732]
[1751301964895,6.3684,156.99,156.95,6.3694]
[1751301965096,10.67279389,156.99,156.93,3.71937732]
[1751301965404,33.86,157.0,156.93,3.71937732]
[1751301965901,6.3685,156.99,156.96,6.3692]
[1751301967495,6.3688,156.98,156.95,6.3697]
[1751301967898,4.30439389,157.0,156.95,6.3697]
[1751301969004,6.3689,156.98,156.95,6.3697]
[1751301969796,4.30439389,156.99,156.93,3.71937732]
[1751301969797,6.3683,156.99,156.96,6.3694]
[1751301970002,10.67269389,156.99,156.93,3.71937732]
[1751301970200,6.3683,156.99,156.93,3.71937732]
[1751301970401,10.67269389,156.99,156.96,6.3693]
[1751301970596,4.30439389,157.0,156.93,3.71937732]
[1751301970796,4.30439389,156.99,156.95,6.3695]
[1751301971001,4.30439389,157.0,156.95,6.3695]
[1751301971201,6.3687,156.98,156.95,6.3695]
[1751301971503,4.30439389,157.0,156.96,6.3693]
[1751301971701,6.3684,156.99,156.93,3.71937732]
[1751301972101,6.3684,156.99,156.96,6.3692]
[1751301972794,10.67279389,156.99,156.96,6.3692]
[1751301972999,10.67239389,157.0,156.95,3.71937732]
[1751301973199,4.30439389,156.99,156.95,3.71937732]
[1751301973396,4.30439389,156.99,156.97,6.3688]
[1751301973804,10.67269389,156.99,156.97,6.3688]
[1751301974002,6.3683,156.99,156.95,3.71937732]
[1751301974209,4.30439389,157.0,156.91,33.86]
[1751301974405,6.3688,156.98,156.93,3.71937732]
[1751301974611,10.67319389,156.98,156.95,6.3695]
[1751301974809,6.3688,156.98,156.95,6.3695]
[1751301975209,10.67319389,156.98,156.96,6.3693]
[1751301975409,6.3684,156.99,156.93,3.71937732]
[1751301975610,4.30439389,156.98,156.93,3.71937732]
[1751301975812,4.30439389,157.0,156.98,6.3684]
[1751301976310,4.30439389,157.01,156.98,6.3684]
[1751301976510,10.67239389,157.0,156.98,6.3684]
[1751301976712,4.30439389,156.99,156.98,6.3684]
[1751301977212,4.30439389,156.99,156.97,6.3688]
[1751301977908,10.67259389,156.99,156.97,6.3688]
[1751301978110,6.3682,156.99,156.97,6.3688]
[1751301978508,10.67259389,156.99,156.97,6.3688]
[1751301978802,6.3682,156.99,156.97,6.3688]
[1751301979013,10.67259389,156.99,156.97,6.3688]
[1751301979209,6.3682,156.99,156.97,6.3688]
[1751301979507,10.67259389,156.99,156.97,6.3688]
[1751301979713,6.3682,156.99,156.97,6.3688]
[1751301980106,4.30439389,156.98,156.96,6.3692]
[1751301980310,4.30439389,156.98,156.91,39.79895725]
[1751301980615,4.30439389,156.98,156.97,6.369]
[1751301980814,4.30439389,157.0,156.97,6.369]
[1751301981112,10.67289389,156.99,156.93,3.71937732]
[1751301981313,4.30439389,156.98,156.96,6.3691]
[1751301981513,4.30439389,157.0,156.96,6.3691]
[1751301981709,6.3688,156.98,156.96,6.3691]
[1751301982014,4.30439389,156.97,156.96,6.3691]
[1751301982915,4.30439389,157.0,156.98,6.3685]
[1751301983110,4.30439389,156.99,156.95,3.71937732]
[1751301983316,4.30439389,157.0,156.95,3.71937732]
[1751301983515,10.67279389,156.99,156.95,3.71937732]
[1751301983816,4.30439389,156.98,156.94,3.71937732]
[1751301984011,6.3688,156.98,156.94,3.71937732]
[1751301984208,6.3688,156.98,156.95,6.3697]
[1751301984413,10.67319389,156.98,156.95,6.3697]
[1751301984610,6.3688,156.98,156.95,6.3697]
[1751301984809,4.30439389,156.99,156.94,6.3701]
[1751301985013,4.30439389,156.98,156.92,3.71937732]
[1751301985210,6.3694,156.96,156.92,3.71937732]
[1751301986019,6.3694,156.96,156.93,6.3702]
[1751301987220,4.30439389,156.95,156.91,33.86]
[1751301987421,4.30439389,156.96,156.91,33.86]
[1751301987623,4.30439389,156.95,156.93,6.3704]
[1751301987823,4.30439389,156.96,156.93,6.3704]
[1751301988024,4.30439389,156.95,156.93,6.3704]
[1751301988320,6.3699,156.95,156.93,6.3704]
[1751301988926,10.67399389,156.96,156.93,6.3704]
[1751301989424,4.30439389,156.96,156.93,6.3704]
[1751301989619,4.30439389,156.96,156.89,4.3271]
[1751301989620,4.30439389,156.95,156.89,8.04647732]
[1751301989826,4.30439389,156.96,156.89,8.04647732]
[1751301990127,6.3705,156.94,156.91,6.3711]
[1751301991024,6.3707,156.93,156.89,4.3271]
[1751301991225,4.30439389,156.96,156.9,3.71937732]
[1751301991725,6.3703,156.94,156.92,6.3708]
[1751301994429,6.3703,156.94,156.91,6.3712]
[1751301994630,6.3703,156.94,156.9,3.71937732]
[1751301994928,6.3703,156.94,156.92,6.3708]
[1751301995126,38.08439389,156.97,156.9,3.71937732]
[1751301995127,4.30439389,156.97,156.9,3.71937732]
[1751301995324,4.30439389,156.97,156.94,3.71937732]
[1751301995529,4.30439389,157.0,156.94,3.71937732]
[1751301995726,4.30439389,157.0,156.9,3.71937732]
[1751301995727,8.02377121,156.99,156.9,3.71937732]
[1751301995933,4.30439389,156.98,156.9,3.71937732]
[1751301996132,4.30439389,156.98,156.93,6.3706]
[1751301996321,6.3699,156.95,156.93,6.3706]
[1751301996527,4.30439389,156.98,156.93,6.3706]
[1751301996831,6.3696,156.96,156.93,6.3706]
[1751301998726,4.30439389,156.96,156.92,6.3709]
[1751301999229,6.37,156.95,156.92,6.3709]
[1751302000027,6.37,156.95,156.92,6.3708]
[1751302000223,6.3703,156.94,156.92,6.3708]
[1751302000530,4.30439389,156.96,156.92,6.3708]
[1751302000732,4.30439389,156.96,156.91,3.71937732]
[1751302001031,33.8,157.01,156.95,3.71937732]
[1751302001328,33.8,157.01,156.97,6.3688]
[1751302001528,6.3681,157.0,156.97,6.3688]
[1751302001729,4.21284753,157.0,156.97,6.3688]
[1751302002537,37.51937732,157.01,156.93,37.51937732]
[1751302002835,4.21284753,157.0,156.93,37.51937732]
[1751302003135,10.58124753,156.99,156.96,6.3694]
[1751302003435,6.3684,156.99,156.96,6.3694]
[1751302003630,10.58124753,156.99,156.96,6.3694]
[1751302003935,4.21284753,157.0,156.95,3.71937732]
[1751302004134,4.21284753,157.02,156.95,3.71937732]
[1751302004330,4.21284753,157.01,156.95,3.71937732]
[1751302004528,4.21284753,157.0,156.98,6.3686]
[1751302005230,4.21284753,157.02,156.98,6.3686]
[1751302005433,4.21284753,157.01,156.98,6.3686]
[1751302005726,4.21284753,157.02,156.98,6.3686]
[1751302005926,10.58024753,157.01,156.98,6.3686]
[1751302006236,4.21284753,157.02,156.98,6.3686]
[1751302006436,4.21284753,157.01,156.99,6.3682]
[1751302007331,6.3672,157.02,156.99,6.3682]
[1751302007332,4.21284753,157.0,156.99,6.3682]
[1751302007533,4.21284753,157.03,156.97,33.68]
[1751302007835,6.3666,157.03,156.98,3.71937732]
[1751302008041,10.57944753,157.03,156.98,3.71937732]
[1751302008234,6.3666,157.03,156.98,3.71937732]
[1751302008433,10.57944753,157.03,156.98,3.71937732]
[1751302008633,6.3666,157.03,156.98,3.71937732]
[1751302008833,10.57944753,157.03,157.0,6.3676]
[1751302009134,6.367,157.02,157.0,6.3676]
[1751302009336,4.21284753,157.03,157.0,6.3676]
[1751302009534,4.21284753,157.02,157.0,6.3676]
[1751302009736,6.3667,157.03,157.0,6.3676]
[1751302009932,4.21284753,157.02,157.0,6.3676]
[1751302010132,4.21284753,157.04,157.0,6.3676]
[1751302010330,4.21284753,157.03,157.0,6.3676]
[1751302010539,4.21284753,157.02,157.0,6.3676]
[1751302010834,4.21284753,157.04,157.0,6.3676]
[1751302011139,4.21284753,157.03,157.0,6.3676]
[1751302011335,10.58004753,157.02,157.0,6.3676]
[1751302011633,6.3672,157.02,156.99,6.3682]
[1751302011837,6.3672,157.02,156.98,3.71937732]
[1751302012038,10.58004753,157.02,156.98,3.71937732]
[1751302012231,6.3674,157.01,156.98,10.08777732]
[1751302013642,6.3679,157.0,156.98,10.08777732]
[1751302013942,4.21284753,157.04,156.98,10.08777732]
[1751302014142,6.3676,157.01,156.98,10.08777732]
[1751302014544,4.21284753,157.03,156.99,6.3681]
[1751302014740,4.21284753,157.04,156.99,6.3681]
[1751302014938,4.21284753,157.03,156.99,6.3681]
[1751302015131,4.21284753,157.04,156.99,6.3681]
[1751302015331,6.3673,157.02,156.99,6.3681]
[1751302016342,4.21284753,157.04,156.99,3.71937732]
[1751302016732,6.3666,157.03,157.0,6.3675]
[1751302016937,4.28578947,157.04,156.99,3.71937732]
[1751302017438,2.1285,157.09,157.03,3.71937732]
[1751302017638,4.28442953,157.09,157.05,3.71937732]
[1751302017947,33.68,157.15,157.07,3.71937732]
[1751302018244,33.68,157.15,157.09,3.71937732]
[1751302018838,6.3635,157.11,157.04,33.68]
[1751302019034,6.3635,157.11,157.06,3.71937732]
[1751302019235,4.28382841,157.14,157.08,3.71937732]
[1751302019435,6.3628,157.13,157.1,6.3635]
[1751302019632,33.68,157.15,157.08,37.39937732]
[1751302019835,6.3633,157.12,157.09,6.364]
[1751302020241,4.28382841,157.14,157.08,37.39937732]
[1751302020446,33.68,157.15,157.12,6.3629]
[1751302020742,43.95720573,157.17,157.08,37.39937732]
[1751302021045,40.23782841,157.17,157.08,37.39937732]
[1751302021245,6.362,157.15,157.12,6.3629]
[1751302021547,3.71937732,157.19,157.1,3.71937732]
[1751302022043,4.2844581,157.19,157.12,3.71937732]
[1751302022342,14.11165536,157.21,157.13,33.66]
[1751302022535,3.71937732,157.19,157.12,33.66]
[1751302022740,3.71937732,157.19,157.13,6.3624]
[1751302022944,3.71937732,157.19,157.12,33.66]
[1751302023245,3.71937732,157.17,157.12,33.66]
[1751302024137,6.3628,157.13,157.09,33.66]
[1751302024335,3.71937732,157.15,157.09,33.66]
[1751302024846,6.3625,157.13,157.1,6.3635]
[1751302025043,33.66,157.18,157.1,6.3635]
[1751302025044,3.71937732,157.16,157.1,6.3635]
[1751302026047,6.3624,157.14,157.1,6.3635]
[1751302026345,3.71937732,157.16,157.1,6.3635]
[1751302026546,6.3624,157.14,157.1,6.3635]
[1751302026845,3.71937732,157.16,157.09,33.66]
[1751302027347,3.71937732,157.16,157.09,40.0239]
[1751302028048,6.3628,157.13,157.09,40.0239]
[1751302028545,8.00383542,157.17,157.09,33.66]
[1751302028755,3.71937732,157.19,157.12,3.71937732]
[1751302029044,6.3612,157.17,157.13,6.3623]
[1751302029245,3.71937732,157.19,157.12,3.71937732]
[1751302029644,6.3607,157.18,157.14,6.3621]
[1751302029947,4.2844581,157.2,157.14,6.3621]
[1751302030148,39.45647732,157.21,157.14,6.3621]
[1751302030448,39.45647732,157.21,157.14,3.71937732]
[1751302030850,39.45647732,157.21,157.14,6.3619]
[1751302031148,39.45647732,157.21,157.13,37.37937732]
[1751302031348,6.3603,157.19,157.15,6.3617]
[1751302031941,6.3603,157.19,157.13,37.37937732]
[1751302031942,6.3608,157.18,157.14,6.362]
[1751302032141,3.71937732,157.19,157.13,33.66]
[1751302032542,3.71937732,157.17,157.1,4.448]
[1751302032746,3.71937732,157.17,157.1,35.8973]
[1751302033252,6.3619,157.15,157.11,6.363]
[1751302033453,4.2844581,157.2,157.1,35.8973]
[1751302033653,3.71937732,157.19,157.11,3.71937732]
[1751302033843,43.74093542,157.21,157.13,3.71937732]
[1751302034046,4.2844581,157.2,157.14,33.66]
[1751302034242,10.6441581,157.2,157.15,6.3614]
[1751302034653,10.6441581,157.2,157.16,6.3611]
[1751302034853,4.2844581,157.2,157.14,33.66]
[1751302035153,4.2844581,157.2,157.16,6.361]
[1751302035352,4.2844581,157.2,157.14,33.66]
[1751302035561,4.2844581,157.2,157.14,35.7218]
[1751302035854,10.6441581,157.2,157.17,6.3606]
[1751302036054,97.21494209,157.23,157.15,3.71937732]
[1751302036259,4.46029273,157.22,157.15,3.71937732]
[1751302036547,6.3595,157.21,157.15,3.71937732]
[1751302036956,6.3595,157.21,157.18,6.3603]
[1751302037856,6.3595,157.21,157.15,3.71937732]
[1751302038355,6.3595,157.21,157.18,6.3603]
[1751302039153,6.3595,157.21,157.14,35.7218]
[1751302039154,8.17967005,157.22,157.16,6.3611]
[1751302039358,8.17967005,157.22,157.14,39.44117732]
[1751302040250,8.17967005,157.22,157.17,6.3607]
[1751302041260,4.46029273,157.22,157.14,39.44117732]
[1751302041449,10.81949273,157.22,157.14,39.44117732]
[1751302041647,4.46029273,157.22,157.2,6.3594]
[1751302042455,4.46029273,157.22,157.21,6.3593]
[1751302043058,4.46029273,157.22,157.18,37.25937732]
[1751302043059,97.21494209,157.23,157.22,6.3589]
[1751302043252,33.54,157.33,157.22,33.54]
[1751302043458,3.71937732,157.29,157.22,33.54]
[1751302043656,3.71937732,157.27,157.22,33.54]
[1751302043854,4.3091,157.31,157.22,33.54]
[1751302044454,4.3091,157.31,157.24,3.71937732]
[1751302044660,6.3561,157.29,157.26,6.357]
[1751302045066,4.3091,157.31,157.23,3.71937732]
[1751302045264,2.151,157.33,157.25,3.71937732]
[1751302045465,2.151,157.33,157.26,33.54]
[1751302045962,33.54,157.35,157.27,3.71937732]
[1751302046156,2.1843,157.36,157.26,33.54]
[1751302046357,3.71937732,157.34,157.26,37.25937732]
[1751302047661,6.3555,157.31,157.26,37.25937732]
[1751302047861,10.02097498,157.36,157.28,3.71937732]
[1751302048061,6.3547,157.33,157.29,6.3558]
[1751302048462,6.3547,157.33,157.28,3.71937732]
[1751302048660,4.11729766,157.36,157.31,6.3552]
[1751302048861,5.82277732,157.38,157.32,3.71937732]
[1751302048862,6.22069766,157.38,157.32,3.71937732]
[1751302049061,39.36107732,157.4,157.32,37.25937732]
[1751302049262,39.36107732,157.4,157.32,43.61387732]
[1751302049463,39.36107732,157.4,157.32,37.25937732]
[1751302049967,6.3531,157.37,157.32,37.25937732]
[1751302050367,6.3531,157.37,157.32,43.61397732]
[1751302051267,6.3525,157.38,157.32,37.25937732]
[1751302051971,6.3521,157.39,157.34,3.71937732]
[1751302052162,10.08237498,157.42,157.38,3.71937732]
[1751302052163,4.11729766,157.42,157.38,3.71937732]
[1751302052359,7.83667498,157.48,157.39,37.23937732]
[1751302052562,6.3507,157.43,157.39,37.23937732]
[1751302052759,4.11729766,157.48,157.39,33.52]
[1751302052970,37.23937732,157.52,157.39,33.52]
[1751302053168,4.11729766,157.51,157.43,3.71937732]
[1751302053467,6.3476,157.5,157.45,3.71937732]
[1751302053771,4.11729766,157.55,157.43,33.52]
[1751302053970,6.3929,157.56,157.48,3.71937732]
[1751302054171,3.71937732,157.55,157.47,37.23937732]
[1751302054372,6.3929,157.56,157.47,33.52]
[1751302054668,6.3929,157.56,157.41,4.4529]
[1751302054669,3.71937732,157.53,157.43,3.71937732]
[1751302054862,3.71937732,157.51,157.44,33.52]
[1751302055058,3.71937732,157.49,157.41,8.17227732]
[1751302055267,3.71937732,157.49,157.4,8.6017]
[1751302055268,3.71937732,157.46,157.36,549.3]
[1751302055463,3.71937732,157.46,157.18,19.0812]
[1751302055464,3.71937732,157.44,157.33,6.7978]
[1751302055672,4.41571706,157.43,157.33,10.51717732]
[1751302055973,5.48186945,157.4,157.26,549.08]
[1751302056171,5.48186945,157.36,157.27,40.255]
[1751302056568,6.3553,157.31,157.27,46.6116]
[1751302056767,5.48186945,157.37,157.27,40.255]
[1751302057275,6.354,157.34,157.28,6.3562]
[1751302057468,2.2381,157.38,157.27,45.73686945]
[1751302057669,2.2381,157.38,157.29,5.48186945]
[1751302057974,6.57261915,157.38,157.29,5.48186945]
[1751302058373,6.3539,157.35,157.31,6.3549]
[1751302058573,2.2381,157.38,157.29,5.48186945]
[1751302058774,5.48186945,157.37,157.27,45.73686945]
[1751302058981,5.48186945,157.35,157.27,40.255]
[1751302059467,5.48186945,157.37,157.29,6.3558]
[1751302059977,5.48186945,157.37,157.27,40.255]
[1751302060866,6.3556,157.31,157.27,46.6118]
[1751302061476,6.3549,157.32,157.28,6.3563]
[1751302061671,5.48186945,157.35,157.27,40.255]
[1751302061875,5.48186945,157.37,157.27,40.255]
[1751302062576,5.48186945,157.37,157.28,5.48186945]
[1751302062779,35.7381,157.38,157.29,5.48186945]
[1751302063579,4.4509085,157.37,157.29,5.48186945]
[1751302063779,4.4509085,157.37,157.27,45.73686945]
[1751302063780,4.4509085,157.36,157.27,45.73686945]
[1751302063978,5.48186945,157.37,157.27,45.73686945]
[1751302063979,4.4509085,157.35,157.27,45.73686945]
[1751302064180,10.8050085,157.34,157.3,6.3554]
[1751302064482,4.4509085,157.33,157.3,6.3554]
[1751302064775,4.4509085,157.32,157.3,6.3555]
[1751302064980,4.4509085,157.33,157.3,6.3555]
[1751302065480,10.8054085,157.33,157.29,6.356]
[1751302065679,4.4509085,157.32,157.29,6.356]
[1751302065882,4.4509085,157.31,157.29,6.356]
[1751302066082,4.4509085,157.32,157.29,6.356]
[1751302066282,4.4509085,157.32,157.3,6.3556]
[1751302066581,5.48186945,157.37,157.27,45.73686945]
[1751302066582,4.4509085,157.33,157.27,45.73686945]
[1751302066781,4.4509085,157.32,157.27,45.73686945]
[1751302066978,5.48186945,157.37,157.29,6.3558]
[1751302066979,4.4509085,157.31,157.29,6.3558]
[1751302067278,4.4509085,157.33,157.27,45.73686945]
[1751302067479,4.4509085,157.33,157.29,6.3557]
[1751302067683,10.8054085,157.33,157.29,6.3557]
[1751302067888,6.3545,157.33,157.29,6.3557]
[1751302068086,4.4509085,157.35,157.3,6.3556]
[1751302068385,10.8052085,157.34,157.3,6.3556]
[1751302068578,4.4509085,157.33,157.3,6.3556]
[1751302068779,4.4509085,157.33,157.27,45.73686945]
[1751302068973,4.4509085,157.36,157.27,45.73686945]
[1751302069282,9.93277795,157.35,157.27,46.6116]
[1751302069488,4.4509085,157.34,157.27,40.255]
[1751302069683,10.8055085,157.33,157.27,40.255]
[1751302069884,4.4509085,157.32,157.27,40.255]
[1751302070084,6.3546,157.33,157.28,6.3562]
[1751302070279,6.3549,157.32,157.27,33.5]
[1751302071587,6.3549,157.32,157.28,6.3563]
[1751302071785,6.3553,157.31,157.27,33.5]
[1751302072187,6.3553,157.31,157.27,39.8565]
[1751302073785,6.355,157.32,157.28,6.3564]
[1751302074187,6.355,157.32,157.27,33.5]
[1751302074188,6.3553,157.31,157.27,39.8566]
[1751302076583,5.48186945,157.33,157.27,39.8566]
[1751302076783,5.48186945,157.33,157.18,549.18]
[1751302076985,5.48186945,157.31,157.24,33.44]
[1751302077191,4.4509085,157.31,157.24,33.44]
[1751302077490,5.48186945,157.3,157.24,33.44]
[1751302077692,6.357,157.27,157.24,33.44]
[1751302077996,38.92186945,157.3,157.24,33.44]
[1751302078290,4.4509085,157.31,157.24,33.44]
[1751302078489,4.4509085,157.32,157.24,33.44]
[1751302078681,5.48186945,157.31,157.24,33.44]
[1751302078880,9.93277795,157.31,157.24,33.44]
[1751302079084,5.48186945,157.31,157.24,33.44]
[1751302079288,6.3558,157.3,157.24,33.44]
[1751302079791,6.3558,157.3,157.26,6.3572]
[1751302079992,6.3562,157.29,157.24,33.44]
[1751302080288,5.48186945,157.31,157.26,6.3571]
[1751302080595,9.93277795,157.31,157.24,33.44]
[1751302080795,4.4509085,157.32,157.26,5.48186945]
[1751302081092,33.44,157.33,157.26,5.48186945]
[1751302081583,4.4509085,157.34,157.28,5.48186945]
[1751302081788,4.4509085,157.34,157.22,12.717]
[1751302081985,559.52514458,157.33,157.08,7.7943118]
[1751302082183,5.48186945,157.24,157.15,6.6172]
[1751302082388,5.48186945,157.22,157.16,33.46]
[1751302082596,9.93277795,157.21,157.16,33.46]
[1751302082796,4.4509085,157.2,157.16,33.46]
[1751302082997,4.4509085,157.2,157.13,33.46]
[1751302083392,5.48186945,157.22,157.13,33.46]
[1751302083691,4.4509085,157.21,157.13,33.46]
[1751302084088,5.48186945,157.22,157.13,33.46]
[1751302084595,5.48186945,157.2,157.13,33.46]
[1751302084791,5.48186945,157.18,157.1,4.3529]
[1751302084999,6.3629,157.12,157.11,33.46]
[1751302085298,5.48186945,157.16,157.11,33.46]
[1751302085492,6.3624,157.14,157.11,33.46]
[1751302085992,5.48186945,157.16,157.11,33.46]
[1751302086987,6.3626,157.13,157.11,33.46]
[1751302087493,5.48186945,157.16,157.11,33.46]
[1751302088288,6.3628,157.13,157.11,33.46]
[1751302088492,5.48186945,157.16,157.11,33.46]
[1751302090703,33.46,157.18,157.11,33.46]
[1751302090902,5.48186945,157.16,157.11,33.46]
[1751302092099,5.48186945,157.14,157.08,2.1657]
[1751302092495,5.48186945,157.14,157.08,33.48]
[1751302093089,6.3636,157.11,157.08,33.48]
[1751302093899,5.48186945,157.14,157.08,33.48]
[1751302094505,6.363,157.12,157.08,39.8443]
[1751302095102,6.3627,157.13,157.08,39.8443]
[1751302095305,5.48186945,157.16,157.08,39.8443]
[1751302096102,6.3628,157.13,157.09,6.3641]
[1751302096704,6.3629,157.12,157.08,39.8444]
[1751302097408,6.3634,157.11,157.08,33.48]
[1751302097598,5.48186945,157.14,157.08,33.48]
[1751302097805,5.48186945,157.12,157.08,33.48]
[1751302098205,6.3647,157.08,157.06,549.22]
[1751302099007,6.365,157.07,157.05,33.46]
[1751302099709,6.3647,157.08,157.05,33.46]
[1751302100004,5.48186945,157.12,157.05,33.46]
[1751302100708,6.3652,157.07,157.05,33.46]
[1751302101611,6.3654,157.06,157.05,33.46]
[1751302101813,5.48186945,157.1,157.02,33.46]
[1751302102411,6.3656,157.06,157.02,6.3667]
[1751302102606,6.3656,157.06,157.02,39.8267]
[1751302103316,6.3654,157.06,157.02,33.48]
[1751302103609,5.48186945,157.08,157.02,33.48]
[1751302103802,6.366,157.05,157.02,33.48]
[1751302104710,6.3655,157.06,157.02,33.48]
[1751302104911,5.48186945,157.08,157.03,6.3664]
[1751302105211,38.96186945,157.13,157.02,38.96186945]
[1751302105601,38.96186945,157.13,157.05,6.3655]
[1751302106105,6.3644,157.09,157.05,6.3655]
[1751302106817,5.48186945,157.11,157.04,6.366]
[1751302107000,5.48186945,157.09,157.02,33.48]
[1751302107605,38.96186945,157.09,157.02,33.48]
[1751302107805,6.3665,157.04,157.02,33.48]
[1751302108204,5.48186945,157.07,157.01,2.2828]
[1751302108406,5.48186945,157.07,157.0,4.3607]
[1751302108816,5.48186945,157.07,157.0,2.0888]
[1751302109014,5.48186945,157.07,156.99,33.48]
[1751302109218,5.48186945,157.07,156.98,551.9725]
[1751302109521,6.3668,157.03,156.99,33.48]
[1751302109712,6.3668,157.03,156.99,39.8481]
[1751302109906,5.48186945,157.05,156.99,33.48]
[1751302110105,6.3672,157.02,156.99,33.48]
[1751302111017,6.3668,157.03,156.99,39.8482]
[1751302111211,5.48186945,157.05,156.99,39.8482]
[1751302111711,6.3672,157.02,156.99,33.48]
[1751302112213,6.3674,157.01,156.99,33.48]
[1751302112516,5.48186945,157.05,156.92,34.58709911]
[1751302112517,5.48186945,157.02,156.92,34.58709911]
[1751302112712,33.48,157.01,156.92,33.48]
[1751302112918,5.48186945,156.99,156.92,33.48]
[1751302113312,6.3706,156.93,156.92,33.48]
[1751302113711,6.3704,156.94,156.92,33.48]
[1751302114020,38.96186945,157.0,156.92,33.48]
[1751302114219,6.3689,156.98,156.94,6.3702]
[1751302114518,38.96186945,157.0,156.92,33.48]
[1751302114724,5.48186945,156.98,156.92,33.48]
[1751302115111,5.48186945,156.96,156.92,33.48]
[1751302115315,5.48186945,156.96,156.89,33.48]
[1751302115516,6.3709,156.93,156.89,39.8519]
[1751302116418,6.3711,156.92,156.89,33.48]
[1751302117120,5.48186945,156.96,156.89,33.48]
[1751302117425,5.48186945,156.98,156.89,33.48]
[1751302118216,37.8441,157.0,156.89,33.48]
[1751302118417,43.32596945,157.0,156.89,33.48]
[1751302119419,6.3695,156.96,156.92,6.3708]
[1751302120210,6.3695,156.96,156.93,6.3706]
[1751302121120,6.3692,156.97,156.94,6.3702]
[1751302122417,6.3695,156.96,156.94,6.3702]
[1751302122619,33.48,157.0,156.94,6.3702]